[Event "1000 GM Labor Day Super Swiss 2024"]
[Site "San Jose"]
[Date "2024.09.01"]
[Round "3.20"]
[White "Piasetski, Leon"]
[Black "Bhatta, Rohit"]
[Result "1/2-1/2"]
[Annotator "TA"]
[ECO "E03"]
[WhiteElo "2167"]
[BlackElo "2025"]
[PlyCount "45"]
[EventDate "2024.08.30"]
[EventType "swiss"]
[EventCountry "USA"]
[SourceTitle "playchess.com"]
[Source "ChessBase"]
[SourceQuality "1"]
[TimeControl "5400+30"]

{[%evp 18,45,-34,-44,-41,-49,-29,-50,-40,-41,-27,-39,-22,-28,0,0,0,-27,0,0,0,-6,0,0,0,0,0,0,0,0]} 1. Nf3 {[%emt 0:03:37]} d5 {[%emt 0:00:11]} 2. d4 {[%emt 0:00:52]} Nf6 {[%emt 0:00:05]} 3. c4 {[%emt 0:00:34]} e6 {[%emt 0:00:11]} 4. g3 {[%emt 0:05:02]} dxc4 {[%emt 0:00:29]} 5. Qa4+ {[%emt 0:03:03]} Nbd7 {[%emt 0:00:58]} 6. Bg2 {[%emt 0:01:06]} a6 {[%emt 0:01:40]} 7. Qxc4 {[%emt 0:00:58]} b5 {[%emt 0:01:46]} 8. Qc2 {[%emt 0:09:08]} Bb7 {[%emt 0:00:43]} 9. O-O {[%emt 0:00:19]} c5 {[%emt 0:01:21]} 10. Bg5 {[%emt 0:08:34]} Rc8 {[%emt 0:03:20]} 11. Qd1 {[%emt 0:02:57]} cxd4 {[%emt 0:09:47]} 12. Nxd4 {[%emt 0:01:01]} Bxg2 {[%emt 0:00:30] Black is slightly better.} 13. Kxg2 {[%emt 0:00:08]} Be7 {[%emt 0:07:17]} 14. Nd2 {[%emt 0:03:38]} h6 {[%emt 0:04:56]} 15. Bxf6 {[%emt 0:01:43]} Nxf6 {[%emt 0:03:30]} 16. N2f3 {[%emt 0:11:07]} O-O {[%emt 0:01:45]} 17. Rc1 {[%emt 0:01:41]} Rxc1 {[%emt 0:03:04]} 18. Qxc1 {[%emt 0:00:06] The position is equal.} Qd5 {[%emt 0:09:34]} 19. b3 {[%emt 0:07:48]} Bc5 {[%emt 0:08:04]} 20. Rd1 {[%emt 0:00:53][%cal Od4b5]} Bxd4 {[%emt 0:01:11]} 21. Rxd4 {[%emt 0:00:09]} Qb7 {[%emt 0:01:02]} 22. Qd2 {[%emt 0:06:36]} Rc8 {[%emt 0:15:14]} 23. Rd8+ {[%emt 0:05:47] Weighted Error Value: White=0.05 (flawless) /Black=0.06 (flawless) .  Inaccurate:     	White=1     	Black=2      OK:         	White=6     	Black=6} 1/2-1/2

[Event "1000 GM Labor Day Super Swiss 2024"]
[Site "San Jose"]
[Date "2024.09.01"]
[Round "3.21"]
[White "Atwell, Rose"]
[Black "Montes Orozco, Miguel Angel"]
[Result "1-0"]
[Annotator "TA"]
[ECO "C60"]
[WhiteElo "2208"]
[BlackElo "2155"]
[PlyCount "79"]
[EventDate "2024.08.30"]
[EventType "swiss"]
[EventCountry "USA"]
[SourceTitle "playchess.com"]
[Source "ChessBase"]
[SourceQuality "1"]
[TimeControl "5400+30"]

{[%evp 14,79,45,27,33,25,38,29,25,17,33,17,51,47,32,31,41,45,85,98,89,82,86,59,84,47,63,45,64,23,18,-14,62,47,68,59,54,66,235,0,0,0,317,323,318,283,428,416,367,197,435,430,440,454,467,432,435,424,412,423,422,439,433,436,474,466,465,451]} 1. e4 {[%emt 0:00:02]} e5 {[%emt 0:00:17]} 2. Nf3 {[%emt 0:00:06]} Nc6 {[%emt 0:00:18]} 3. Bb5 {[%emt 0:00:06]} a6 {[%emt 0:01:02]} 4. Ba4 {[%emt 0:00:05]} Nge7 {[%emt 0:00:26]} 5. c3 {[%emt 0:00:47][%cal Bc2c3,Bc3d4,Bd4d5][%mdl 32]} g6 {[%emt 0:00:55]} 6. O-O {[%emt 0:01:25]} Bg7 {[%emt 0:00:06]} 7. d4 {[%emt 0:00:09]} exd4 {[%emt 0:00:32]} 8. cxd4 {[%emt 0:00:06]} b5 {[%emt 0:00:38]} 9. Bb3 {[%emt 0:00:47]} d6 {[%emt 0:03:41]} 10. d5 {[%emt 0:10:36]} Na5 {[%emt 0:01:10] White has an edge.} 11. Bd2 {[%emt 0:00:55]} c5 {[%emt 0:14:28]} 12. Bc3 {[%emt 0:04:58]} O-O {[%emt 0:08:30]} 13. Bxg7 {[%emt 0:10:39]} Kxg7 {[%emt 0:00:08]} 14. Bc2 {[%emt 0:05:05]} Nc4 {[%emt 0:06:48]} 15. b3 {[%emt 0:04:07]} Ne5 {[%emt 0:05:24]} 16. Nxe5 {[%emt 0:05:28]} dxe5 {[%emt 0:00:09]} 17. a4 {[%emt 0:03:57]} Bd7 {[%emt 0:03:05]} 18. Nc3 {[%emt 0:06:45]} Qa5 {[%emt 0:10:13]} 19. Qd3 {[%emt 0:07:01] And now axb5 would win.} Qb4 {[%emt 0:07:11]} 20. Qg3 {[%emt 0:07:56]} f6 $1 {[%emt 0:02:38]} 21. Rfd1 {[%emt 0:03:09]} c4 $1 {[%emt 0:01:31]} 22. Rab1 {[%emt 0:05:13]} Qd6 {[%emt 0:06:12]} ({Black should try} 22... cxb3 $11 23. Bxb3 (23. Rxb3 Qc5 $16) 23... Rfc8 (23... bxa4 24. Bxa4 Qd6 25. Bxd7 $16)) 23. bxc4 $14 {[%emt 0:02:22]} bxc4 {[%emt 0:00:36]} 24. Qe3 $36 {[%emt 0:02:18][%mdl 2048] White is more active.} Rfb8 {[%emt 0:02:07] Inhibits Rb6.} 25. a5 {[%emt 0:02:59]} Rb4 $2 {[%emt 0:06:41]} (25... Nc8 $14) 26. Na2 {[%emt 0:04:55]} Rb5 {[%emt 0:02:44]} 27. Nc3 {[%emt 0:03:12]} Rb4 {[%emt 0:00:34] Repels Ba4} 28. Rxb4 {[%emt 0:02:39]} Qxb4 {[%emt 0:00:07]} 29. Rb1 $1 {[%emt 0:00:41]} Qxa5 {[%emt 0:07:02]} (29... Qd6 $142 30. Rb7 Bc8) 30. Rb7 $18 {[%emt 0:00:08]} Rd8 {[%emt 0:00:12] [#]} 31. Ba4 {[%emt 0:01:57]} (31. h4 $142 $1 {[%cal Oc2a4][%mdl 512] Ba4! is the strong threat.} Kf7 32. d6) 31... Kf7 $2 {[%emt 0:03:07]} (31... Kg8 32. h4 (32. Rxd7 $2 Rxd7 33. h4 Rd6 $19) 32... Bxa4) 32. d6 {[%emt 0:01:46]} (32. Rxd7 $2 Rxd7 33. h4 Rd6 $19) 32... Nc8 {[%emt 0:03:10]} 33. Qh3 {[%emt 0:01:21]} ({Not} 33. Bxd7 Nxd6 34. Rb1 (34. Be6+ Kxe6 35. Qh3+ f5 $16) 34... Rxd7 $11) 33... Nxd6 {[%emt 0:01:20]} 34. Qxh7+ {[%emt 0:02:53]} Kf8 {[%emt 0:00:10] [#]} 35. Qh8+ $1 {[%emt 0:00:07]} (35. Rxd7 Rxd7 36. Qxd7 Nb5 $11) 35... Kf7 {[%emt 0:01:20] [#]} 36. Qxd8 {[%emt 0:00:45][%mdl 512]} Qxd8 {[%emt 0:00:45] White is clearly winning.} 37. Rxd7+ {[%emt 0:00:08]} Qxd7 {[%emt 0:00:15]} 38. Bxd7 {[%emt 0:00:05]} f5 {[%emt 0:00:43]} 39. exf5 {[%emt 0:00:35]} gxf5 {[%emt 0:00:07]} 40. Kf1 {[%emt 0:00:33] Weighted Error Value: White=0.21 (precise) /Black=0.38.  Loses game:     	---       	Black=1      Mistake:       	White=1     	Black=3      Inaccurate:     	White=4     	Black=2      OK:         	White=9     	Black=7      Best:        	White=4     	Black=3      Strong:       	White=2     	Black=2      Brilliant:      	White=1     	---} 1-0

[Event "1000 GM Labor Day Super Swiss 2024"]
[Site "San Jose"]
[Date "2024.09.01"]
[Round "3.22"]
[White "Gonzalez Zharikov, Andrey"]
[Black "Zuluaga Mancilla, Cesar"]
[Result "1/2-1/2"]
[Annotator "TA"]
[ECO "A11"]
[WhiteElo "2070"]
[BlackElo "2166"]
[PlyCount "105"]
[EventDate "2024.08.30"]
[EventType "swiss"]
[EventCountry "USA"]
[SourceTitle "playchess.com"]
[Source "ChessBase"]
[SourceQuality "1"]
[TimeControl "5400+30"]

{[%evp 9,105,10,15,12,11,7,0,7,4,-17,10,8,9,0,0,-5,0,0,0,0,0,0,11,-3,16,9,26,14,51,39,51,36,36,31,34,35,56,54,52,49,59,51,55,47,62,65,65,65,71,70,83,51,63,50,55,48,36,39,39,20,51,24,50,40,43,46,35,35,53,23,47,21,39,35,28,0,0,0,17,8,14,5,4,0,0,0,3,0,3,0,13,3,4,4,5,3,4,4]} 1. Nf3 {[%emt 0:00:08]} d5 {[%emt 0:02:47]} 2. c4 {[%emt 0:00:06]} c6 {[%emt 0:00:13]} 3. e3 {[%emt 0:00:05]} Nf6 {[%emt 0:00:07]} 4. Nc3 {[%emt 0:00:05]} a6 {[%emt 0:00:54]} 5. b3 {[%emt 0:01:07]} Bf5 {[%emt 0:02:44]} 6. Be2 {[%emt 0:01:30]} h6 {[%emt 0:00:24]} 7. O-O {[%emt 0:00:16]} e6 {[%emt 0:00:17]} 8. Bb2 {[%emt 0:00:07]} Nbd7 {[%emt 0:00:18]} 9. d3 {[%emt 0:04:07]} Bh7 {[%emt 0:00:23]} (9... Bd6 $5) 10. Re1 {[%emt 0:02:44]} Bc5 {[%emt 0:04:52][%cal Bf8c5,Bc5a7,Ba7b8,Bb8c7][%mdl 32]} 11. a3 {[%emt 0:03:35]} O-O {[%emt 0:03:10]} 12. b4 {[%emt 0:00:45]} Ba7 {[%emt 0:00:16]} 13. d4 {[%emt 0:02:55]} Bb8 {[%emt 0:03:24]} 14. Qb3 {[%emt 0:08:18]} Re8 {[%emt 0:03:48]} 15. a4 {[%emt 0:03:26]} Bc7 {[%emt 0:02:52]} 16. Red1 {[%emt 0:03:28]} Qb8 {[%emt 0:04:41]} 17. h3 {[%emt 0:01:17]} Ne4 {[%emt 0:05:08]} 18. b5 {[%emt 0:03:36]} Kh8 {[%emt 0:06:04]} 19. Nxe4 {[%emt 0:03:51]} Bxe4 {[%emt 0:00:22]} 20. cxd5 {[%emt 0:04:53]} cxd5 {[%emt 0:01:33]} 21. a5 {[%emt 0:01:49]} axb5 {[%emt 0:05:09]} 22. Qxb5 {[%emt 0:02:13]} Qd8 {[%emt 0:02:08][%cal Rc7a5]} 23. Bc3 {[%emt 0:00:57]} (23. Qxb7 $2 {perishes.} Rb8 $19 (23... Rxa5 $2 {too greedy.} 24. Rdc1 $18) (23... Bxa5 24. Ra2 $11) (23... Rxa5 $2 24. Rdc1 $18) (23... Bxa5 24. Ba3 $11)) 23... Rb8 {[%emt 0:02:02]} 24. Nd2 {[%emt 0:01:22] [#] Strongly threatening Nxe4.} Bg6 {[%emt 0:00:53]} 25. Rdc1 {[%emt 0:01:28]} Nf6 {[%emt 0:04:34]} 26. Bb4 {[%emt 0:05:39]} e5 {[%emt 0:10:23]} 27. Nf3 {[%emt 0:05:58] White is much more active.} exd4 {[%emt 0:01:45]} 28. Nxd4 {[%emt 0:01:12]} Ne4 {[%emt 0:00:09]} 29. Nf3 {[%emt 0:01:47]} Bf5 {[%emt 0:01:46]} 30. Rd1 {[%emt 0:03:30]} Be6 {[%emt 0:00:18]} 31. Rac1 {[%emt 0:03:31]} (31. Rf1 {simplifies} Nd6 32. Qa4 Nc4 33. Rfc1) 31... Ra8 {[%emt 0:10:38][%cal Rc7a5]} 32. Qxb7 {[%emt 0:05:03]} Bxa5 {[%emt 0:00:32]} 33. Bxa5 {[%emt 0:00:32]} Rxa5 {[%emt 0:00:52]} 34. Qc7 {[%emt 0:01:15]} Qa8 {[%emt 0:00:56]} 35. Nd4 {[%emt 0:00:59]} Ra2 {[%emt 0:02:20]} 36. Rc2 {[%emt 0:02:47]} Rc8 {[%emt 0:04:36]} 37. Rxa2 {[%emt 0:00:10]} Qxa2 {[%emt 0:00:00]} 38. Qb7 {[%emt 0:03:38] [#] Black must now prevent Nxe6.} Re8 {[%emt 0:03:30][%cal Bc8e8,Be8b8,Bb8b2][%mdl 32]} 39. Qa6 {[%emt 0:00:34]} Qb2 {[%emt 0:01:17]} (39... Qxa6 {simplifies} 40. Bxa6 g6 41. Rc1 h5) 40. Qb5 {[%emt 0:00:20]} Rb8 {[%emt 0:00:10]} 41. Qxb2 {[%emt 0:00:17]} Rxb2 {[%emt 0:00:01]} 42. f3 {[%emt 0:00:32]} Nc3 {[%emt 0:00:41][%csl LRd1,LRe2] The position is equal.} 43. Re1 {[%emt 0:00:06]} Bd7 {[%emt 0:00:41]} 44. Bf1 {[%emt 0:00:39]} Na2 {[%emt 0:02:04] Inhibits Rc1.} 45. Re2 {[%emt 0:00:07]} Rxe2 {[%emt 0:00:19]} 46. Bxe2 $11 {[%emt 0:00:02][%mdl 4096] Endgame. KBN-KBN} Nc3 {[%emt 0:00:49]} 47. Kf2 {[%emt 0:00:05]} Kg8 {[%emt 0:00:06]} 48. Ke1 {[%emt 0:00:05]} Kf8 {[%emt 0:00:24]} 49. Kd2 {[%emt 0:00:05]} Na4 {[%emt 0:01:19]} 50. Bd1 {[%emt 0:00:19]} Nc5 {[%emt 0:00:10]} 51. Kc3 {[%emt 0:00:29]} Ke7 {[%emt 0:00:03]} 52. Bc2 {[%emt 0:00:29]} Kd6 {[%emt 0:00:30]} 53. Kb4 {[%emt 0:00:59] Weighted Error Value: White=0.08 (flawless) /Black=0.09 (flawless) .  Inaccurate:     	White=5     	Black=4      OK:         	White=11    	Black=16     Best:        	White=2     	Black=1} 1/2-1/2